Workbook

Sheet MSU
B1: Valtteri Niskanen | E1: 24.4.1990 Kouvola
B2: SUPERPESIS | E2: Runkosarja | I2: Kärkilyönnit (KL), pesänvälit | P2: Ylempi loppusarja | W2: Alempi loppusarja | AD2: Arvo-ottelut | AH2: Mitalit
B3: Vuosi | C3: Sija | D3: Seura | E3: OTT | F3: KUN | G3: LÖI | H3: TOI | I3: KL | J3: 0 > 1 | K3: 1 > 2 | L3: 2 > 3 | M3: 3 > k | N3: KL-% | P3: OTT | Q3: KUN | R3: LÖI | S3: TOI | T3: KL | U3: KL-% | W3: OTT | X3: KUN | Y3: LÖI | Z3: TOI | AA3: KL | AB3: KL-% | AD3: IL | AE3: LL | AF3: hSM | AG3: K | AH3: H | AI3: P
B4: 2009 | C4: 6. | D4: KPL 2 | F4: suomensarja
B5: 2010 | C5: 2. | D5: KPL 2 | F5: suomensarja
B6: 2011 | C6: 3. | D6: KPL 2 | F6: suomensarja
B7: 2012 | C7: 6. | D7: KPL 2 | F7: suomensarja
B8: 2012 | C8: 12. | D8: IPV | F8: ykköspesis
B9: 2012 | C9: 10. | D9: KPL | E9: 2 | F9: 0 | G9: 2 | H9: 0 | I9: 2 | J9: 0 | K9: 0 | L9: 0 | M9: 2 | N9: 22.2 %
B10: 2013 | C10: 2. | D10: KPL 2 | F10: suomensarja
B11: 2014 | C11: 2. | D11: KPL 2 | F11: suomensarja
B12: 2015 | C12: 2. | D12: KPL 2 | F12: suomensarja
B13: 2016
B14: 2017 | C14: 4. | D14: KPL 2 | F14: suomensarja
B15: 2018 | C15: 5. | D15: KPL 2 | F15: suomensarja
B16: 2019 | C16: 4. | D16: KPL 2 | F16: suomensarja
B17: Yhteensä | E17: 2 | F17: 0 | G17: 2 | H17: 0 | I17: 2 | J17: 0 | K17: 0 | L17: 0 | M17: 2 | N17: 22.2 % | P17: 0 | Q17: 0 | R17: 0 | S17: 0 | T17: 0 | U17: 0.0 % | W17: 0 | X17: 0 | Y17: 0 | Z17: 0 | AA17: 0 | AB17: 0.0 % | AD17: 0 | AE17: 0 | AF17: 0 | AG17: 0 | AH17: 0 | AI17: 0
B18: Pesispörssi | D18: 2.7
B20: URA SUPERISSA | E20: OTT | F20: KUN | G20: LÖI | H20: TOI | I20: KL | K20: ka/L | L20: ka/T | M20: ka/KL | N20: KL-% | P20: ENSIMMÄISET RUNKOSARJASSA
B21: Runkosarja | E21: 2 | F21: 0 | G21: 2 | H21: 0 | I21: 2 | K21: 1.00 | L21: 0.00 | M21: 1.00 | N21: 22.2 % | P21: Ottelu | R21: 13.06. 2012 KPL - Tahko 1-2 (3-4, 3-2, 0-1) | AA21: 1. ottelu | AC21: 21 v 1 kk 20 pv
B22: Ylempi loppusarja | P22: Lyöty | R22: 13.06. 2012 KPL - Tahko 1-2 (3-4, 3-2, 0-1) | AA22: 1. ottelu | AC22: 21 v 1 kk 20 pv
B23: Alempi loppusarja | P23: Tuotu
B24: KAIKKI | E24: 2 | F24: 0 | G24: 2 | H24: 0 | I24: 2 | K24: 1.00 | L24: 0.00 | M24: 1.00 | N24: 22.2 % | P24: Kunnari
B26: Seurat | D26: KPL = Kouvolan Pallonlyöjät (1931), kasvattajaseura
D27: IPV = Imatran Pallo-Veikot (1955)

Sheet MYP, MSS
B1: Valtteri Niskanen | E1: 24.4.1990 Kouvola
B2: YKKÖSPESIS | E2: Runkosarja | L2: Runkosarja TOP-10 | Q2: Jatkosarjat | X2: SUOMENSARJA | AA2: Runkosarja | AH2: Runkosarja TOP-10 | AM2: Jatkosarjat
B3: Vuosi | C3: Sija | D3: Seura | E3: OTT | F3: KUN | G3: LÖI | H3: TOI | I3: KL | J3: KL-% | L3: LÖI | M3: TOI | N3: L+T | O3: KL | Q3: OTT | R3: KUN | S3: LÖI | T3: TOI | U3: KL | V3: KL-% | X3: Vuosi | Y3: Sija | Z3: Seura | AA3: OTT | AB3: KUN | AC3: LÖI | AD3: TOI | AE3: KL | AF3: KL-% | AH3: LÖI | AI3: TOI | AJ3: L+T | AK3: KL | AM3: OTT | AN3: KUN | AO3: LÖI | AP3: TOI | AQ3: KL | AR3: KL-%
X4: 2009 | Y4: 6. | Z4: KPL 2 | AA4: 18 | AB4: 2 | AC4: 8 | AD4: 10 | AE4: 43 | AF4: 48.3 % | AG4: 89
X5: 2010 | Y5: 2. | Z5: KPL 2 | AA5: 15 | AB5: 3 | AC5: 22 | AD5: 15 | AE5: 53 | AF5: 58.9 % | AG5: 90 | AM5: 4 | AN5: 0 | AO5: 3 | AP5: 0 | AQ5: 7 | AR5: 26.9 % | AS5: 26
X6: 2011 | Y6: 3. | Z6: KPL 2 | AA6: 16 | AB6: 3 | AC6: 32 | AD6: 18 | AE6: 79 | AF6: 68.1 % | AG6: 116 | AH6: 5. | AJ6: 3. | AK6: 7. | AM6: 2 | AN6: 0 | AO6: 1 | AP6: 2 | AQ6: 4 | AR6: 30.8 % | AS6: 13
B7: 2012 | C7: 12. | D7: IPV | E7: 7 | F7: 2 | G7: 15 | H7: 2 | I7: 27 | J7: 49.1 % | K7: 55 | X7: 2012 | Y7: 6. | Z7: KPL 2 | AA7: 8 | AB7: 3 | AC7: 28 | AD7: 8 | AE7: 47 | AF7: 63.5 % | AG7: 74 | AH7: 5.
X8: 2013 | Y8: 2. | Z8: KPL 2 | AA8: 16 | AB8: 1 | AC8: 38 | AD8: 8 | AE8: 56 | AF8: 44.8 % | AG8: 125 | AH8: 3. | AJ8: 4. | AM8: 6 | AN8: 0 | AO8: 11 | AP8: 1 | AQ8: 13 | AR8: 33.3 % | AS8: 39
X9: 2014 | Y9: 2. | Z9: KPL 2 | AA9: 3 | AB9: 0 | AC9: 10 | AD9: 1 | AE9: 14 | AF9: 56.0 % | AG9: 25 | AM9: 1 | AN9: 0 | AO9: 0 | AP9: 0 | AQ9: 4 | AR9: 66.7 % | AS9: 6
X10: 2015 | Y10: 2. | Z10: KPL 2 | AA10: 11 | AB10: 0 | AC10: 24 | AD10: 2 | AE10: 40 | AF10: 47.1 % | AG10: 85 | AH10: 10. | AM10: 5 | AN10: 0 | AO10: 1 | AP10: 0 | AQ10: 11 | AR10: 36.7 % | AS10: 30
X12: 2017 | Y12: 4. | Z12: KPL 2 | AA12: 1 | AB12: 0 | AC12: 1 | AD12: 0 | AE12: 2 | AF12: 25.0 % | AG12: 8
X13: 2018 | Y13: 5. | Z13: KPL 2 | AA13: 13 | AB13: 3 | AC13: 24 | AD13: 10 | AE13: 60 | AF13: 61.2 % | AG13: =PRODUCT(AE13/AF13) -> 98 | AH13: 3. | AJ13: 8.
X14: 2019 | Y14: 4. | Z14: KPL 2 | AA14: 1 | AB14: 0 | AC14: 4 | AD14: 0 | AE14: 5 | AF14: 71.4 % | AG14: 7
B15: YHTEENSÄ | E15: =SUM(E4:E14) -> 7 | F15: =SUM(F4:F14) -> 2 | G15: =SUM(G4:G14) -> 15 | H15: =SUM(H4:H14) -> 2 | I15: =SUM(I4:I14) -> 27 | J15: =PRODUCT(I15/K15) -> 49.1 % | K15: =SUM(K4:K14) -> 55 | Q15: =SUM(Q4:Q14) -> 0 | R15: =SUM(R4:R14) -> 0 | S15: =SUM(S4:S14) -> 0 | T15: =SUM(T4:T14) -> 0 | U15: =SUM(U4:U14) -> 0 | V15: 0.0 % | W15: =SUM(W4:W14) -> 0 | X15: YHTEENSÄ | AA15: =SUM(AA4:AA14) -> 102 | AB15: =SUM(AB4:AB14) -> 15 | AC15: =SUM(AC4:AC14) -> 191 | AD15: =SUM(AD4:AD14) -> 72 | AE15: =SUM(AE4:AE14) -> 399 | AF15: =PRODUCT(AE15/AG15) -> 55.6 % | AG15: =SUM(AG4:AG14) -> 717.0071872 | AM15: =SUM(AM4:AM14) -> 18 | AN15: =SUM(AN4:AN14) -> 0 | AO15: =SUM(AO4:AO14) -> 16 | AP15: =SUM(AP4:AP14) -> 3 | AQ15: =SUM(AQ4:AQ14) -> 39 | AR15: =PRODUCT(AQ15/AS15) -> 34.2 % | AS15: =SUM(AS4:AS14) -> 114
B17: KAIKKI OTTELUT | E17: OTT | F17: KUN | G17: LÖI | H17: TOI | I17: KL | J17: KL-% | L17: ka/L | M17: ka/T | N17: ka/l+t | O17: ka/kl | R17: Seurat | T17: KPL = Kouvolan Pallonlyöjät (1931), kasvattajaseura
B18: SUPERPESIS | E18: 2 | F18: 0 | G18: 2 | H18: 0 | I18: 2 | J18: 22.2 % | K18: =PRODUCT(I18/J18) -> 9.009009009 | L18: =PRODUCT((F18+G18)/E18) -> 1.00 | M18: =PRODUCT(H18/E18) -> 0.00 | N18: =PRODUCT((F18+G18+H18)/E18) -> 1.00 | O18: =PRODUCT(I18/E18) -> 1.00 | T18: IPV = Imatran Pallo-Veikot (1955)
B19: YKKÖSPESIS | E19: =PRODUCT(E15+Q15) -> 7 | F19: =PRODUCT(F15+R15) -> 2 | G19: =PRODUCT(G15+S15) -> 15 | H19: =PRODUCT(H15+T15) -> 2 | I19: =PRODUCT(I15+U15) -> 27 | J19: =PRODUCT(I19/K19) -> 49.1 % | K19: =PRODUCT(K15+W15) -> 55 | L19: =PRODUCT((F19+G19)/E19) -> 2.43 | M19: =PRODUCT(H19/E19) -> 0.29 | N19: =PRODUCT((F19+G19+H19)/E19) -> 2.71 | O19: =PRODUCT(I19/E19) -> 3.86
B20: SUOMENSARJA | E20: =PRODUCT(AA15+AM15) -> 120 | F20: =PRODUCT(AB15+AN15) -> 15 | G20: =PRODUCT(AC15+AO15) -> 207 | H20: =PRODUCT(AD15+AP15) -> 75 | I20: =PRODUCT(AE15+AQ15) -> 438 | J20: =PRODUCT(I20/K20) -> 52.7 % | K20: =PRODUCT(AG15+AS15) -> 831.0071872 | L20: =PRODUCT((F20+G20)/E20) -> 1.85 | M20: =PRODUCT(H20/E20) -> 0.63 | N20: =PRODUCT((F20+G20+H20)/E20) -> 2.48 | O20: =PRODUCT(I20/E20) -> 3.65
B21: YHTEENSÄ | E21: =SUM(E18:E20) -> 129 | F21: =SUM(F18:F20) -> 17 | G21: 224 | H21: 77 | I21: 467 | J21: =PRODUCT(I21/K21) -> 52.2 % | K21: =SUM(K18:K20) -> 895.0161962 | L21: =PRODUCT((F21+G21)/E21) -> 1.87 | M21: =PRODUCT(H21/E21) -> 0.60 | N21: =PRODUCT((F21+G21+H21)/E21) -> 2.47 | O21: =PRODUCT(I21/E21) -> 3.62

Sheet Arvo-ottelut
B1: ITÄ - LÄNSI - KORTTI
B2: Valtteri Niskanen | C2: 24.4.1990 Kouvola
B3: B-POJAT | C3: Itä - Länsi, tulos | D3: Joukkue | E3: Seura | G3: V | H3: T | I3: H | J3: Up. | K3: Lj. | L3: Palk. | M3: O | N3: K | O3: L | P3: T | Q3: KL | R3: 1 | S3: 2 | T3: 3 | U3: k | V3: KL-% | W3: Pelinjohtaja | X3: Yleisöä
B4: 28.06. 2008 Raahe | C4: 2-0 (6-3, 3-0) | D4: Itä | E4: KPL | G4: 1 | K4: jok | M4: 1 | Q4: 0/3 | R4: 0/2 | S4: 0/1 | V4: 0.0 % | W4: Jari Mäkelä | X4: 1673
